fUST/lending_fUST_20240615
["ID","MTS","AMOUNT","RATE_DAILY","PERIOD"]
[329541529,1718424642107,-300.0,0.00016489,2]
[329541530,1718424642131,-500.0,0.00016489,2]
[329541531,1718424642143,-500.0,0.0001649,2]
[329541532,1718424642157,-508.49135693,0.0001649,2]
[329541533,1718424642171,-514.60232199,0.0001649,2]
[329541534,1718424642182,-502.37499987,0.0001649,2]
[329541535,1718424642197,-178.84446298,0.0001649,2]
[329541536,1718424642216,-502.93608604,0.0001649,2]
[329541537,1718424642229,-500.0,0.0001649,2]
[329541538,1718424642243,-505.05078919,0.0001649,2]
[329541539,1718424642256,-500.0,0.0001649,2]
[329541540,1718424642277,-500.0,0.0001649,2]
[329541541,1718424642298,-614.32,0.0001649,2]
[329541542,1718424642310,-519.28174539,0.0001649,2]
[329541543,1718424642321,-500.0,0.0001649,2]
[329541544,1718424642336,-500.0,0.0001649,2]
[329541545,1718424642346,-500.0,0.0001649,2]
[329541546,1718424642359,-1756.47,0.0001649,2]
[329541547,1718424642370,-1086.08,0.0001649,2]
[329541548,1718424642384,-500.0,0.0001649,2]
[329541549,1718424642396,-1554.4750923,0.0001649,2]
[329541762,1718424647372,-678.95793225,0.0001649,2]
[329541794,1718424647974,-428.51697545,0.0001649,2]
[329541796,1718424647986,-500.0,0.0001649,2]
[329541799,1718424648001,-500.0,0.0001649,2]
[329541801,1718424648025,-500.0,0.0001649,2]
[329541803,1718424648039,-500.0,0.0001649,2]
[329541805,1718424648083,-176.22579761,0.0001649,2]
[329541807,1718424648094,-4992.21,0.0001649,2]
[329541809,1718424648120,-263.44722694,0.0001649,2]
[329541931,1718424650264,-500.0,0.00016489,2]
[329541932,1718424650299,-393.73484274,0.0001649,2]
[329544120,1718424760581,303.98,0.00010959,2]
[329544121,1718424771134,253.31,0.00010959,2]
[329544122,1718424781663,211.1,0.00010959,2]
[329544123,1718424792222,175.91,0.00010959,2]
[329544124,1718424802968,879.59,0.00010959,2]
[329544126,1718424870934,398.21489702,0.00025,60]
[329544304,1718425841435,-525.33959991,0.00016348,2]
[329544305,1718425841465,-151.82458038,0.00016353,2]
[329544306,1718425841480,-151.82458038,0.00016362,2]
[329544307,1718425841494,-151.82458038,0.00016372,2]
[329544309,1718425841662,-151.82458038,0.00016381,2]
[329544310,1718425841682,-151.82458038,0.0001639,2]
[329544311,1718425841709,-3832.87011372,0.00016444,2]
[329544312,1718425841730,-359.98,0.00016444,2]
[329544438,1718425847629,-6583.56310856,0.00016443,2]
[329544474,1718425848562,-1341.18316139,0.00016443,2]
[329544477,1718425848632,-2682.77802143,0.00016444,2]
[329544542,1718425849909,-419.51272247,0.00016444,2]
[329547333,1718425927698,155.01550155,9.999e-05,2]
[329547334,1718425930657,155.01550155,9.999e-05,2]
[329547335,1718425934965,524.76569402,9.999e-05,2]
[329547336,1718425940284,1985.12007563,9.999e-05,2]
[329547337,1718425984043,516.12149042,9.999e-05,2]
[329547338,1718425992790,216.47083263,9.999e-05,2]
[329547339,1718425996339,718.27,0.00010959,2]
[329547340,1718426010055,443.41585933,9.999e-05,2]
[329547341,1718426010990,722.89436332,9.999e-05,2]
[329547342,1718426015233,775.22608826,9.999e-05,2]
[329547343,1718426068794,718.23,0.00010959,2]
[329547350,1718426494335,181.0,0.00023,30]
[329547413,1718426995742,-253.600312,0.00014006,2]
[329547414,1718426995792,-300.0,0.00014364,2]
[329547415,1718426995834,-39.52546327,0.00014365,2]
[329547416,1718426995899,-199.36095566,0.00014365,2]
[329547417,1718426995978,-593.12577527,0.00014365,2]
[329547418,1718426996036,-593.12577527,0.00014365,2]
[329547440,1718427034726,-337.93781919,0.00014365,2]
[329547493,1718427041868,-1735.54279108,0.00014365,2]
[329547494,1718427041900,-2915.8559745,0.00014365,2]
[329547495,1718427041923,-981.19493176,0.00014365,2]
[329547496,1718427041944,-2200.55258097,0.00014365,2]
[329547497,1718427041966,-300.0,0.00014365,2]
[329547498,1718427042013,-1655.8106375,0.00014366,2]
[329547499,1718427042036,-2819.17925605,0.00015,2]
[329547500,1718427042049,-155.02015262,0.00015398,2]
[329547501,1718427042066,-534.36055141,0.000154,2]
[329547502,1718427042087,-32369.16410598,0.00015449,2]
[329547503,1718427042109,-820.33981355,0.000155,2]
[329547504,1718427042128,-307.1882834,0.00015541,2]
[329547505,1718427042144,-586.9045162,0.000156,2]
[329547506,1718427042170,-292.64536,0.000156,2]
[329547507,1718427042201,-292.64536,0.00015678,2]
[329547508,1718427042217,-292.64536,0.00015678,2]
[329547509,1718427042230,-292.64536,0.00015678,2]
[329547510,1718427042249,-292.64536,0.00015678,2]
[329547511,1718427042271,-589.394411,0.00015678,2]
[329547512,1718427042283,-292.64536,0.00015678,2]
[329547513,1718427042315,-292.64536,0.00015678,2]
[329547514,1718427042331,-292.64536,0.00015678,2]
[329547515,1718427042358,-292.64536,0.00015678,2]
[329547516,1718427042378,-292.64536,0.00015678,2]
[329547517,1718427042394,-292.64536,0.00015678,2]
[329547518,1718427042407,-292.64536,0.00015678,2]
[329547519,1718427042452,-292.64536,0.00015678,2]
[329547520,1718427042474,-292.64536,0.00015678,2]
[329547521,1718427042497,-292.64536,0.00015678,2]
[329547522,1718427042508,-292.64536,0.000157,2]
[329547523,1718427042532,-292.64536,0.000157,2]
[329547524,1718427042546,-292.64536,0.000157,2]
[329547525,1718427042558,-292.64536,0.000157,2]
[329547526,1718427042571,-278.9261283,0.000157,2]
[329547527,1718427042591,-281.1303582,0.000157,2]
[329547528,1718427042602,-820.33981354,0.00015713,2]
[329547529,1718427042629,-289.5141329,0.00015778,2]
[329547530,1718427042648,-292.64536,0.00015778,2]
[329547531,1718427042662,-292.64536,0.00015778,2]
[329547532,1718427042679,-420.0,0.00015802,2]
[329547533,1718427042695,-592.8628634,0.000159,2]
[329547534,1718427042706,-820.33981354,0.00015925,2]
[329547535,1718427042734,-247.2536749,0.00015952,2]
[329547536,1718427042748,-153.0,0.00015952,2]
[329547539,1718427042771,-153.0,0.00015952,2]
[329547541,1718427042783,-153.0,0.00015952,2]
[329547542,1718427042812,-153.0,0.00015952,2]
[329547544,1718427042828,-292.64536,0.00015978,2]
[329547545,1718427042841,-585.1386242,0.0001602,2]
[329547546,1718427042857,-820.33981354,0.00016138,2]
[329547547,1718427042914,-820.33981354,0.0001635,2]
[329547548,1718427042937,-185.66194509,0.00016432,2]
[329547593,1718427047256,-1892.53194266,0.00016432,2]
[329547612,1718427047539,-322.95188237,0.00016432,2]
[329547932,1718427060583,872.42834136,9.999e-05,2]
[329547943,1718427986985,273.37336231,9.9e-05,2]
[329547945,1718428017723,273.37336231,9.9e-05,2]
[329547947,1718428026352,273.37336231,9.9e-05,2]
[329547950,1718428035501,273.37336231,9.9e-05,2]
[329547951,1718428043654,273.37336231,9.9e-05,2]
[329547952,1718428052474,273.37336231,9.9e-05,2]
[329547958,1718428061489,273.37336231,9.9e-05,2]
[329547959,1718428069837,273.37336231,9.9e-05,2]
[329547961,1718428079063,273.37336231,9.9e-05,2]
[329547962,1718428088619,273.37336231,9.9e-05,2]
[329547963,1718428096625,273.37336231,9.9e-05,2]
[329547965,1718428108193,-651.1544683,0.00015,2]
[329547966,1718428108272,-450.37702863,0.00015,2]
[329547967,1718428114206,273.37336231,9.9e-05,2]
[329547968,1718428122179,273.37336231,9.9e-05,2]
[329547969,1718428130432,273.37336231,9.9e-05,2]
[329547970,1718428138736,273.37336231,9.9e-05,2]
[329547971,1718428146758,273.37336231,9.9e-05,2]
[329547973,1718428155066,273.37336231,9.9e-05,2]
[329547974,1718428163708,273.37336231,9.9e-05,2]
[329547975,1718428173206,273.37336231,9.9e-05,2]
[329547976,1718428181233,273.37336231,9.9e-05,2]
[329547977,1718428192342,273.37336231,9.9e-05,2]
[329547978,1718428200540,273.37336231,9.9e-05,2]
[329547979,1718428209183,273.37336231,9.9e-05,2]
[329547980,1718428217989,273.37336231,9.9e-05,2]
[329547982,1718428226367,273.37336231,9.9e-05,2]
[329548049,1718428234461,-3121.94841695,0.00016407,4]
[329548051,1718428234475,-592.19407371,0.00016407,2]
[329548053,1718428234489,-300.0,0.00016408,2]
[329548055,1718428234501,-25410.50618485,0.00016409,2]
[329548074,1718428234852,273.37336231,9.9e-05,2]
[329548112,1718428241050,-7341.98241547,0.00016409,2]
[329548117,1718428243788,273.37336231,9.9e-05,2]
[329548139,1718428246384,-3549.99999983,0.00016409,2]
[329548228,1718428248688,-1811.5565123,0.00016409,2]
[329548230,1718428248722,-14776.29021741,0.00016409,2]
[329548247,1718428249003,-2091.14007647,0.00016409,2]
[329548332,1718428251008,-636.5613204,0.00016408,4]
[329548387,1718428251974,273.37336231,9.9e-05,2]
[329549149,1718428531297,273.37336231,9.9e-05,2]
[329549150,1718428539893,273.37336231,9.9e-05,2]
[329549151,1718428548229,273.37336231,9.9e-05,2]
[329549153,1718428557460,273.37336231,9.9e-05,2]
[329549154,1718428565740,273.37336231,9.9e-05,2]
[329549234,1718429435218,-467.56548251,0.00016337,2]
[329549236,1718429435247,-721.06589932,0.00016337,2]
[329549542,1718429448539,-212.40916484,0.00016337,2]
[329549544,1718429448550,-391.59083516,0.00016337,2]
[329549546,1718429448584,-541.884229,0.00016337,2]
[329549548,1718429448608,-933.47506416,0.00016338,2]
[329549550,1718429448623,-933.47506416,0.00016338,2]
[329549552,1718429448677,-933.47506416,0.00016338,2]
[329549554,1718429448689,-738.30694036,0.00016338,2]
[329549557,1718429448703,-272.01498762,0.00016338,2]
[329549558,1718429448729,-1008.90270892,0.00016408,2]
[329549560,1718429448759,-369.10624412,0.00016408,2]
[329549564,1718429448813,-240.2224,0.00016408,2]
[329549566,1718429448826,-1617.18226755,0.00016409,2]
[329549570,1718429448895,-505.70007402,0.00016409,2]
[329549572,1718429448919,-839.44822282,0.00016432,2]
[329549574,1718429448944,-2862.89570981,0.00016432,2]
[329549806,1718429453702,-6704.39809821,0.00016432,2]
[329549810,1718429453724,-662.32613757,0.00016433,4]
[329549814,1718429453768,-6830.25397155,0.00016436,2]
[329549817,1718429453798,-9008.36717351,0.00016436,2]
[329549820,1718429453814,-159.19178579,0.00016437,2]
[329549823,1718429453825,-318.67513585,0.00016437,2]
[329549826,1718429453848,-18322.27600732,0.00016437,2]
[329549828,1718429453875,-151.0,0.00016437,2]
[329549830,1718429453890,-151.747133,0.00016437,2]
[329549831,1718429453901,-151.0,0.00016437,2]
[329549834,1718429453928,-151.0,0.00016437,2]
[329549836,1718429453941,-151.0,0.00016437,2]
[329549839,1718429453969,-151.0,0.00016437,2]
[329549840,1718429454016,-151.0,0.00016437,2]
[329549842,1718429454036,-555.482982,0.00016437,2]
[329549843,1718429454049,-555.482982,0.00016437,2]
[329549845,1718429454063,-151.0,0.00016437,2]
[329549848,1718429454092,-268.868761,0.00016437,2]
[329549850,1718429454106,-500.0,0.00016438,2]
[329549852,1718429454124,-163.20027686,0.00016438,2]
[329549854,1718429454157,-500.0,0.00016438,2]
[329549856,1718429454185,-500.0,0.00016438,2]
[329549858,1718429454200,-500.0,0.00016438,2]
[329549860,1718429454213,-372.50592829,0.00016438,2]
[329549862,1718429454244,-500.0,0.00016438,2]
[329549864,1718429454255,-500.0,0.00016438,2]
[329549866,1718429454296,-506.72102544,0.00016438,2]
[329549869,1718429454363,-531.42432964,0.00016438,2]
[329549871,1718429454378,-500.0,0.00016438,2]
[329549872,1718429454407,-500.0,0.00016438,2]
[329549875,1718429454433,-500.0,0.00016438,2]
[329549877,1718429454451,-500.0,0.00016438,2]
[329549880,1718429454473,-500.0,0.00016438,2]
[329549881,1718429454486,-500.0,0.00016438,2]
[329549883,1718429454511,-501.00794981,0.00016438,2]
[329549885,1718429454529,-500.0,0.00016438,2]
[329549887,1718429454543,-500.0,0.00016438,2]
[329549889,1718429454555,-500.0,0.00016438,2]
[329549891,1718429454567,-481.72424941,0.00016438,2]
[329549893,1718429454586,-151.0,0.00016438,2]
[329549895,1718429454598,-151.0,0.00016438,2]
[329549898,1718429454618,-151.0,0.00016438,2]
[329549901,1718429454636,-151.0,0.00016438,2]
[329549903,1718429454648,-255.141064,0.00016438,2]
[329549905,1718429454671,-500.0,0.00016438,2]
[329549906,1718429454690,-502.54145473,0.00016438,2]
[329549909,1718429454703,-500.0,0.00016438,2]
[329549911,1718429454724,-500.0,0.00016438,2]
[329549912,1718429454772,-504.44550167,0.00016438,2]
[329549914,1718429454784,-500.0,0.00016438,2]
[329549917,1718429454820,-500.0,0.00016438,2]
[329549918,1718429454846,-500.0,0.00016438,2]
[329549922,1718429454909,-500.97,0.00016438,2]
[329549924,1718429454924,-500.0,0.00016438,2]
[329549925,1718429454943,-500.0,0.00016438,2]
[329549927,1718429454969,-500.0,0.00016438,2]
[329549929,1718429454982,-500.0,0.00016438,2]
[329549933,1718429455032,-877.83,0.00016438,2]
[329549935,1718429455050,-439.28333055,0.00016438,2]
[329549937,1718429455079,-500.0,0.00016438,2]
[329549939,1718429455109,-500.0,0.00016438,2]
[329549941,1718429455122,-500.0,0.00016438,2]
[329549943,1718429455137,-500.0,0.00016438,2]
[329549946,1718429455196,-504.43498526,0.00016438,2]
[329549948,1718429455208,-500.0,0.00016438,2]
[329549949,1718429455244,-500.0,0.00016438,2]
[329549951,1718429455266,-500.0,0.00016438,2]
[329549954,1718429455312,-465.59489192,0.00016438,2]
[329549956,1718429455324,-507.29456528,0.00016438,2]
[329549958,1718429455338,-500.0,0.00016438,2]
[329549960,1718429455370,-500.0,0.00016438,2]
[329549962,1718429455388,-505.08019248,0.00016438,2]
[329549964,1718429455408,-500.0,0.00016438,2]
[329549966,1718429455441,-500.0,0.00016438,2]
[329549968,1718429455458,-500.0,0.00016438,2]
[329549970,1718429455482,-540.44613334,0.00016438,2]
[329549972,1718429455493,-500.0,0.00016438,2]
[329549974,1718429455504,-500.0,0.00016438,2]
[329549976,1718429455516,-765.44,0.00016438,2]
[329549978,1718429455546,-500.0,0.00016438,2]
[329549980,1718429455558,-519.53078125,0.00016438,2]
[329549982,1718429455592,-500.0,0.00016438,2]
[329549984,1718429455604,-500.0,0.00016438,2]
[329549986,1718429455616,-507.03697536,0.00016438,2]
[329549988,1718429455642,-500.0,0.00016438,2]
[329549990,1718429455655,-236.32400074,0.00016438,2]
[329549992,1718429455668,-500.0,0.00016438,2]
[329549994,1718429455681,-607.45,0.00016438,2]
[329549996,1718429455692,-500.0,0.00016438,2]
[329549998,1718429455704,-502.11946576,0.00016438,2]
[329550000,1718429455720,-500.0,0.00016438,2]
[329550002,1718429455743,-500.0,0.00016438,2]
[329550004,1718429455780,-500.0,0.00016438,2]
[329550007,1718429455808,-500.0,0.00016438,2]
[329550009,1718429455822,-500.0,0.00016438,2]
[329550010,1718429455856,-500.0,0.00016438,2]
[329550012,1718429455867,-500.0,0.00016438,2]
[329550014,1718429455880,-500.0,0.00016438,2]
[329550016,1718429455897,-500.0,0.00016438,2]
[329550018,1718429455925,-500.0,0.00016438,2]
[329550020,1718429455956,-500.0,0.00016438,2]
[329550022,1718429455983,-500.0,0.00016438,2]
[329550024,1718429456007,-503.71952875,0.00016438,2]
[329550026,1718429456032,-500.0,0.00016438,2]
[329550028,1718429456078,-505.94258907,0.00016438,2]
[329550031,1718429456116,-223.87440523,0.00016438,2]
[329550032,1718429456130,-506.66,0.00016438,2]
[329550034,1718429456143,-500.0,0.00016438,2]
[329550036,1718429456172,-500.0,0.00016438,2]
[329550039,1718429456184,-500.0,0.00016438,2]
[329550041,1718429456198,-500.0,0.00016438,2]
[329550043,1718429456210,-500.0,0.00016438,2]
[329550044,1718429456228,-506.05529582,0.00016438,2]
[329550047,1718429456241,-500.0,0.00016438,2]
[329550048,1718429456260,-502.4270916,0.00016438,2]
[329550051,1718429456272,-500.0,0.00016438,2]
[329550053,1718429456293,-500.0,0.00016438,2]
[329550054,1718429456309,-500.0,0.00016438,2]
[329550057,1718429456325,-500.0,0.00016438,2]
[329550059,1718429456337,-500.0,0.00016438,2]
[329550061,1718429456347,-500.0,0.00016438,2]
[329550063,1718429456358,-500.0,0.00016438,2]
[329550064,1718429456369,-500.0,0.00016438,2]
[329550067,1718429456387,-500.0,0.00016438,2]
[329550069,1718429456398,-500.0,0.00016438,2]
[329550071,1718429456409,-500.0,0.00016438,2]
[329550073,1718429456420,-1026.43,0.00016438,2]
[329550075,1718429456433,-502.80042173,0.00016438,2]
[329550076,1718429456444,-500.0,0.00016438,2]
[329550078,1718429456457,-500.0,0.00016438,2]
[329550080,1718429456469,-500.0,0.00016438,2]
[329550082,1718429456480,-500.0,0.00016438,2]
[329550084,1718429456496,-500.0,0.00016438,2]
[329550087,1718429456529,-500.0,0.00016438,2]
[329550089,1718429456548,-500.0,0.00016438,2]
[329550091,1718429456565,-500.0,0.00016438,2]
[329550093,1718429456576,-151.0,0.00016438,2]
[329550095,1718429456589,-151.0,0.00016438,2]
[329550096,1718429456609,-151.0,0.00016438,2]
[329550098,1718429456621,-151.0,0.00016438,2]
[329550100,1718429456638,-151.0,0.00016438,2]
[329550102,1718429456664,-151.0,0.00016438,2]
[329550104,1718429456682,-151.0,0.00016438,2]
[329550106,1718429456693,-201.061704,0.00016438,2]
[329550108,1718429456731,-612.06,0.00016438,2]
[329550109,1718429456743,-500.0,0.00016438,2]
[329550111,1718429456755,-561.23,0.00016438,2]
[329550113,1718429456766,-500.0,0.00016438,2]
[329550115,1718429456779,-500.0,0.00016438,2]
[329550118,1718429456792,-502.97734708,0.00016438,2]
[329550120,1718429456829,-500.0,0.00016438,2]
[329550122,1718429456855,-500.0,0.00016438,2]
[329550124,1718429456867,-500.0,0.00016438,2]
[329550126,1718429456878,-818.76,0.00016438,2]
[329550128,1718429456907,-502.57913896,0.00016438,2]
[329550130,1718429456920,-500.0,0.00016438,2]
[329550132,1718429456931,-500.0,0.00016438,2]
[329550134,1718429456941,-500.0,0.00016438,2]
[329550136,1718429456954,-500.0,0.00016438,2]
[329550138,1718429456988,-500.0,0.00016438,2]
[329550140,1718429457007,-500.0,0.00016438,2]
[329550142,1718429457018,-500.0,0.00016438,2]
[329550144,1718429457040,-500.0,0.00016438,2]
[329550147,1718429457068,-500.0,0.00016438,2]
[329550149,1718429457080,-2293.68,0.00016438,2]
[329550150,1718429457106,-3529.24,0.00016438,2]
[329550160,1718429457119,-500.0,0.00016438,2]
[329550161,1718429457255,-500.0,0.00016438,2]
[329550163,1718429457267,-500.0,0.00016438,2]
[329550165,1718429457280,-500.0,0.00016438,2]
[329550167,1718429457324,-704.24,0.00016438,2]
[329550169,1718429457352,-500.0,0.00016438,2]
[329550170,1718429457365,-500.0,0.00016438,2]
[329550172,1718429457384,-500.0,0.00016438,2]
[329550174,1718429457398,-1109.58,0.00016438,2]
[329550177,1718429457440,-500.0,0.00016438,2]
[329550178,1718429457455,-500.0,0.00016438,2]
[329550179,1718429457466,-500.0,0.00016438,2]
[329550180,1718429457487,-524.87,0.00016438,2]
[329550181,1718429457532,-500.0,0.00016438,2]
[329550182,1718429457542,-503.03369081,0.00016438,2]
[329550183,1718429457554,-500.0,0.00016438,2]
[329550184,1718429457566,-500.0,0.00016438,2]
[329550185,1718429457608,-500.0,0.00016438,2]
[329550186,1718429457621,-9321.06,0.00016438,2]
[329550187,1718429457631,-151.0,0.00016438,2]
[329550188,1718429457649,-151.0,0.00016438,2]
[329550189,1718429457660,-151.0,0.00016438,2]
[329550190,1718429457687,-151.0,0.00016438,2]
[329550191,1718429457734,-172.83053656,0.00016438,2]
[329550192,1718429457748,-500.0,0.00016438,2]
[329550193,1718429457763,-500.0,0.00016438,2]
[329550195,1718429457775,-500.0,0.00016438,2]
[329550197,1718429457788,-500.0,0.00016438,2]
[329550199,1718429457800,-246.27458965,0.00016438,2]
[329550201,1718429457819,-253.72541035,0.00016438,2]
[329550204,1718429457833,-47.97392475,0.00016438,2]
[329550206,1718429457847,-452.02607525,0.00016438,2]
[329550208,1718429457859,-500.0,0.00016438,2]
[329550210,1718429457884,-500.0,0.00016438,2]
[329550213,1718429457923,-500.0,0.00016438,2]
[329550215,1718429457939,-500.0,0.00016438,2]
[329550217,1718429457954,-500.0,0.00016438,2]
[329550218,1718429457971,-500.0,0.00016438,2]
[329550219,1718429457984,-500.0,0.00016438,2]
[329550220,1718429457994,-504.91049732,0.00016438,2]
[329550221,1718429458017,-500.0,0.00016438,2]
[329550222,1718429458029,-151.0,0.00016438,2]
[329550223,1718429458042,-151.0,0.00016438,2]
[329550224,1718429458053,-151.0,0.00016438,2]
[329550225,1718429458065,-151.0,0.00016438,2]
[329550226,1718429458093,-151.0,0.00016438,2]
[329550227,1718429458110,-151.0,0.00016438,2]
[329550229,1718429458123,-151.0,0.00016438,2]
[329550231,1718429458146,-151.0,0.00016438,2]
[329550232,1718429458182,-500.0,0.00016438,2]
[329550234,1718429458211,-224.697209,0.00016438,2]
[329550236,1718429458222,-500.0,0.00016438,2]
[329550237,1718429458237,-151.0,0.00016438,2]
[329550238,1718429458260,-500.0,0.00016438,2]
[329550240,1718429458292,-151.0,0.00016438,2]
[329550241,1718429458308,-151.0,0.00016438,2]
[329550243,1718429458336,-151.0,0.00016438,2]
[329550244,1718429458355,-500.0,0.00016438,2]
[329550248,1718429458442,-500.0,0.00016438,2]
[329550249,1718429458469,-500.0,0.00016438,2]
[329550251,1718429458493,-500.0,0.00016438,2]
[329550253,1718429458506,-767.62,0.00016438,2]
[329550255,1718429458519,-6539.61,0.00016438,2]
[329550257,1718429458538,-500.0,0.00016438,2]
[329550259,1718429458556,-509.3766643,0.00016438,2]
[329550261,1718429458592,-500.0,0.00016438,2]
[329550263,1718429458607,-500.0,0.00016438,2]
[329550266,1718429458643,-1888.75,0.00016438,2]
[329550267,1718429458657,-623.2,0.00016438,2]
[329550269,1718429458672,-507.80122233,0.00016438,2]
[329550271,1718429458684,-979.41,0.00016438,2]
[329550273,1718429458711,-500.0,0.00016438,2]
[329550275,1718429458723,-502.55091189,0.00016438,2]
[329550277,1718429458741,-534.53,0.00016438,2]
[329550279,1718429458770,-2338.47,0.00016438,2]
[329550282,1718429458813,-500.0,0.00016438,2]
[329550284,1718429458839,-500.0,0.00016438,2]
[329550286,1718429458851,-500.0,0.00016438,2]
[329550289,1718429458885,-6800.86,0.00016438,2]
[329550290,1718429458899,-500.0,0.00016438,2]
[329550292,1718429458923,-500.87878689,0.00016438,2]
[329550294,1718429458952,-500.0,0.00016438,2]
[329550296,1718429458967,-500.0,0.00016438,2]
[329550298,1718429459009,-500.0,0.00016438,2]
[329550300,1718429459022,-4715.62,0.00016438,2]
[329550302,1718429459034,-500.0,0.00016438,2]
[329550304,1718429459047,-500.0,0.00016438,2]
[329550307,1718429459070,-500.0,0.00016438,2]
[329550309,1718429459082,-500.0,0.00016438,2]
[329550311,1718429459095,-505.26578951,0.00016438,2]
[329550313,1718429459109,-502.16201078,0.00016438,2]
[329550315,1718429459126,-500.0,0.00016438,2]
[329550317,1718429459137,-500.0,0.00016438,2]
[329550320,1718429459176,-501.30920121,0.00016438,2]
[329550322,1718429459202,-635.89,0.00016438,2]
[329550325,1718429459269,-500.0,0.00016438,2]
[329550327,1718429459320,-500.0,0.00016438,2]
[329550330,1718429459364,-500.7461977,0.00016438,2]
[329550332,1718429459396,-500.0,0.00016438,2]
[329550334,1718429459409,-500.0,0.00016438,2]
[329550337,1718429459446,-504.60595636,0.00016438,2]
[329550338,1718429459472,-500.0,0.00016438,2]
[329550340,1718429459483,-504.82857766,0.00016438,2]
[329550343,1718429459505,-500.0,0.00016438,2]
[329550345,1718429459518,-500.0,0.00016438,2]
[329550347,1718429459533,-500.0,0.00016438,2]
[329550348,1718429459545,-500.0,0.00016438,2]
[329550350,1718429459556,-500.0,0.00016438,2]
[329550352,1718429459569,-500.0,0.00016438,2]
[329550354,1718429459580,-500.0,0.00016438,2]
[329550356,1718429459591,-500.0,0.00016438,2]
[329550357,1718429459604,-500.0,0.00016438,2]
[329550358,1718429459614,-500.0,0.00016438,2]
[329550359,1718429459628,-500.0,0.00016438,2]
[329550361,1718429459640,-500.0,0.00016438,2]
[329550363,1718429459650,-503.20683974,0.00016438,2]
[329550365,1718429459683,-500.0,0.00016438,2]
[329550367,1718429459697,-1220.96,0.00016438,2]
[329550369,1718429459710,-500.0,0.00016438,2]
[329550371,1718429459722,-555.482982,0.00016438,2]
[329550373,1718429459733,-500.74793857,0.00016438,2]
[329550375,1718429459747,-555.482982,0.00016438,2]
[329550376,1718429459758,-555.482982,0.00016438,2]
[329550378,1718429459769,-555.482982,0.00016438,2]
[329550380,1718429459780,-555.482982,0.00016438,2]
[329550382,1718429459792,-555.482982,0.00016438,2]
[329550384,1718429459807,-555.482982,0.00016438,2]
[329550386,1718429459818,-555.482982,0.00016438,2]
[329550389,1718429459829,-555.482982,0.00016438,2]
[329550391,1718429459842,-500.0,0.00016438,2]
[329550392,1718429459868,-555.482982,0.00016438,2]
[329550394,1718429459881,-555.482982,0.00016438,2]
[329550396,1718429459894,-500.0,0.00016438,2]
[329550398,1718429459907,-555.482982,0.00016438,2]
[329550400,1718429459921,-555.482982,0.00016438,2]
[329550402,1718429459937,-555.482982,0.00016438,2]
[329550404,1718429459948,-555.482982,0.00016438,2]
[329550406,1718429459961,-555.482982,0.00016438,2]
[329550408,1718429459973,-151.0,0.00016438,2]
[329550410,1718429459986,-151.0,0.00016438,2]
[329550411,1718429460000,-151.0,0.00016438,2]
[329550412,1718429460013,-151.0,0.00016438,2]
[329550413,1718429460027,-555.482982,0.00016438,2]
[329550415,1718429460040,-555.482976,0.00016438,2]
[329550417,1718429460055,-500.0,0.00016438,2]
[329550419,1718429460067,-500.0,0.00016438,2]
[329550421,1718429460081,-500.0,0.00016438,2]
[329550423,1718429460117,-500.0,0.00016438,2]